bitfinex/quotes_BTCUSD_20241102
["timestamp","ask_amount","ask_price","bid_price","bid_amount"]
[1730581694397,0.39469428,69468.0,69467.0,0.000821]
[1730581694836,0.39469765,69468.0,69467.0,0.000821]
[1730581696384,0.48077705,69468.0,69467.0,0.000821]
[1730581696847,0.39469765,69468.0,69467.0,0.000821]
[1730581698399,0.39470364,69468.0,69467.0,0.000821]
[1730581698818,0.38140268,69468.0,69467.0,0.000821]
[1730581699038,0.39486291,69468.0,69467.0,0.000821]
[1730581703579,0.3949486,69468.0,69467.0,0.000821]
[1730581706625,0.50256401,69468.0,69467.0,0.000821]
[1730581709452,0.50256322,69468.0,69467.0,0.000821]
[1730581709829,0.50256323,69468.0,69467.0,0.000821]
[1730581710572,0.50256341,69468.0,69467.0,0.000821]
[1730581711416,0.394948,69468.0,69467.0,0.000821]
[1730581713122,0.38148837,69468.0,69467.0,0.000821]
[1730581713328,0.3949489,69468.0,69467.0,0.000821]
[1730581716789,0.42635683,69468.0,69467.0,0.000821]
[1730581717005,0.43982024,69468.0,69467.0,0.000821]
[1730581717215,0.39495178,69468.0,69467.0,0.000821]
[1730581717440,0.43982021,69468.0,69467.0,0.000821]
[1730581720141,0.43782021,69468.0,69467.0,0.000821]
[1730581720777,0.4243568,69468.0,69467.0,0.000821]
[1730581721002,0.43782168,69468.0,69467.0,0.000821]
[1730581721222,0.43982168,69468.0,69467.0,0.000821]
[1730581723128,0.39495325,69468.0,69467.0,0.000821]
[1730581723536,0.43983212,69468.0,69467.0,0.000821]
[1730581724156,0.43983268,69468.0,69467.0,0.000821]
[1730581727158,0.4407633,69468.0,69467.0,0.000821]
[1730581728454,0.4387633,69468.0,69467.0,0.000821]
[1730581729536,0.4407633,69468.0,69467.0,0.000821]
[1730581729738,0.4387633,69468.0,69467.0,0.000821]
[1730581730051,0.4407633,69468.0,69467.0,0.000821]
[1730581730261,0.4397633,69468.0,69467.0,0.000821]
[1730581730481,0.4387633,69468.0,69467.0,0.000821]
[1730581731123,0.42529786,69468.0,69467.0,0.000821]
[1730581731319,0.4387646,69468.0,69467.0,0.000821]
[1730581731565,0.42529786,69468.0,69467.0,0.000821]
[1730581731785,0.43876461,69468.0,69467.0,0.000821]
[1730581732000,0.44076461,69468.0,69467.0,0.000821]
[1730581732416,0.43876461,69468.0,69467.0,0.000821]
[1730581734379,0.43876461,69468.0,69467.0,0.000381]
[1730581734868,0.44076461,69468.0,69467.0,0.000381]
[1730581736629,0.44086034,69468.0,69467.0,0.000381]
[1730581741447,0.44086203,69468.0,69467.0,0.000381]
[1730581741659,0.42739359,69468.0,69467.0,0.000381]
[1730581741861,0.44086204,69468.0,69467.0,0.000381]
[1730581744473,0.44092156,69468.0,69467.0,0.000381]
[1730581745686,0.42745311,69468.0,69467.0,0.000381]
[1730581746595,0.44092221,69468.0,69467.0,0.000381]
[1730581746811,0.42745983,69468.0,69467.0,0.000381]
[1730581746952,0.44092889,69468.0,69467.0,0.000381]
[1730581749209,0.28814518,69468.0,69467.0,0.000381]
[1730581749425,0.44094109,69468.0,69467.0,0.000381]
[1730581754084,0.43894109,69468.0,69467.0,0.000381]
[1730581758709,0.4409404,69468.0,69467.0,0.000381]
[1730581760906,0.4389404,69468.0,69467.0,0.000381]
[1730581763495,0.43893365,69468.0,69467.0,0.000381]
[1730581763675,0.44093365,69468.0,69467.0,0.000381]
[1730581765058,0.42746459,69468.0,69467.0,0.000381]
[1730581765261,0.55493584,69468.0,69467.0,0.000381]
[1730581766312,0.68425875,69468.0,69467.0,0.000381]
[1730581766556,0.82820975,69468.0,69467.0,0.000381]
[1730581766762,0.82819143,69468.0,69467.0,0.000381]
[1730581767160,0.69888684,69468.0,69467.0,0.000381]
[1730581767620,0.68541559,69468.0,69467.0,0.000381]
[1730581767814,0.69887749,69468.0,69467.0,0.000381]
[1730581768051,0.69830668,69468.0,69467.0,0.000381]
[1730581768687,0.69830352,69468.0,69467.0,0.000381]
[1730581772362,0.69829826,69468.0,69467.0,0.000381]
[1730581772558,0.5460806,69468.0,69467.0,0.000381]
[1730581772784,0.69819308,69468.0,69467.0,0.000381]
[1730581773849,0.71971551,69468.0,69467.0,0.000381]
[1730581776282,0.6847396,69468.0,69467.0,0.000381]
[1730581776487,0.71971031,69468.0,69467.0,0.000381]
[1730581776686,0.8488538,69468.0,69467.0,0.000381]
[1730581777531,0.84887818,69468.0,69467.0,0.000381]
[1730581779730,0.84887435,69468.0,69467.0,0.000381]
[1730581788981,0.71973086,69468.0,69467.0,0.000381]
[1730581790275,0.71974253,69468.0,69467.0,0.000381]
[1730581790969,0.84885126,69468.0,69467.0,0.000381]
[1730581791405,0.567594,69468.0,69467.0,0.000381]
[1730581791636,0.84880179,69468.0,69467.0,0.000381]
[1730581792551,0.01,69460.0,69459.0,0.000822]
[1730581792770,0.27165496,69460.0,69459.0,0.000822]
[1730581792993,0.42375449,69460.0,69459.0,0.000822]
[1730581793218,0.42159502,69460.0,69459.0,0.000822]
[1730581793683,0.42359502,69460.0,69459.0,0.000822]
[1730581796383,0.42159502,69460.0,69459.0,0.000822]
[1730581799317,0.33552166,69460.0,69459.0,0.000822]
[1730581800413,0.38040203,69460.0,69459.0,0.000822]
[1730581800615,0.38031551,69460.0,69459.0,0.000822]
[1730581800845,0.3803644,69460.0,69459.0,0.000822]
[1730581803226,0.35881623,69460.0,69459.0,0.000822]
[1730581803655,0.36081623,69460.0,69459.0,0.000822]
[1730581804045,0.36076064,69460.0,69459.0,0.000822]
[1730581804407,0.46837825,69460.0,69459.0,0.000822]
[1730581804611,0.46637825,69460.0,69459.0,0.144791]
[1730581805022,0.46637825,69460.0,69459.0,0.000822]
[1730581805424,0.46837825,69460.0,69459.0,0.000822]
[1730581806649,0.46837735,69460.0,69459.0,0.144791]
[1730581807086,0.20880232,69460.0,69459.0,0.144791]
[1730581807306,0.21096179,69460.0,69459.0,0.144791]
[1730581807510,0.21096155,69460.0,69459.0,0.144791]
[1730581810000,0.20896155,69460.0,69459.0,0.144791]
[1730581810248,0.21096155,69460.0,69459.0,0.144791]
[1730581810369,0.36300392,69460.0,69459.0,0.144791]
[1730581810570,0.34737799,69460.0,69459.0,0.144791]
[1730581810778,0.36084451,69460.0,69459.0,0.144791]
[1730581814482,0.36084473,69460.0,69459.0,0.144791]
[1730581815103,0.38239096,69460.0,69459.0,0.144791]
[1730581815307,0.38239096,69460.0,69459.0,0.000822]
[1730581816595,0.38249818,69460.0,69459.0,0.000822]
[1730581818149,0.34748521,69460.0,69459.0,0.000822]
[1730581818582,0.38249991,69460.0,69459.0,0.000822]
[1730581822054,0.38250209,69460.0,69459.0,0.000822]
[1730581825273,0.38050209,69460.0,69459.0,0.000822]
[1730581825481,0.38250209,69460.0,69459.0,0.000822]
[1730581825683,0.34748521,69460.0,69459.0,0.000822]
[1730581825895,0.38250194,69460.0,69459.0,0.000822]
[1730581830682,0.38050194,69460.0,69459.0,0.000822]
[1730581830882,0.38067324,69460.0,69459.0,0.000822]
[1730581831238,0.38267324,69460.0,69459.0,0.144791]
[1730581831525,0.38267324,69460.0,69459.0,0.000822]
[1730581836566,0.55967324,69460.0,69459.0,0.000822]
[1730581840035,0.52465651,69460.0,69459.0,0.000822]
[1730581840237,0.55964713,69460.0,69459.0,0.000822]
[1730581840519,0.5596471,69460.0,69459.0,0.000822]
[1730581843703,0.52463679,69460.0,69459.0,0.000822]
[1730581843924,0.55963983,69460.0,69459.0,0.000822]
[1730581844744,0.55960636,69460.0,69459.0,0.000822]
[1730581851246,0.52460332,69460.0,69459.0,0.000822]
[1730581851459,0.55960472,69460.0,69459.0,0.000822]
[1730581851897,0.6693981,69460.0,69459.0,0.000822]
[1730581852104,0.8133651,69460.0,69459.0,0.000822]
[1730581852319,0.6693981,69460.0,69459.0,0.000822]
[1730581852581,0.6343967,69460.0,69459.0,0.000822]
[1730581852800,0.6693935,69460.0,69459.0,0.000822]
[1730581853658,0.79863248,69460.0,69459.0,0.000822]
[1730581854093,0.6888391,69460.0,69459.0,0.000822]
[1730581854308,0.55960012,69460.0,69459.0,0.000822]
[1730581854947,0.5595968,69460.0,69459.0,0.000822]
[1730581857503,0.4620968,69460.0,69459.0,0.000822]
[1730581857930,0.4620968,69460.0,69459.0,0.144791]
[1730581859025,0.46183926,69460.0,69459.0,0.144791]
[1730581861197,0.42684578,69460.0,69459.0,0.144791]
[1730581861437,0.46183609,69460.0,69459.0,0.144791]
[1730581861648,0.42684578,69460.0,69459.0,0.144791]
[1730581861867,0.46183602,69460.0,69459.0,0.144791]
[1730581862522,0.46208674,69460.0,69459.0,0.144791]
[1730581864652,0.4270965,69460.0,69459.0,0.144791]
[1730581864870,0.462086,69460.0,69459.0,0.144791]
[1730581867084,0.42707723,69460.0,69459.0,0.144791]
[1730581867298,0.46206712,69460.0,69459.0,0.144791]
[1730581869050,0.46206731,69460.0,69459.0,0.144791]
[1730581870203,0.41718694,69460.0,69459.0,0.144791]
[1730581870424,0.41733203,69460.0,69459.0,0.144791]
[1730581872168,0.01,69457.0,69456.0,0.287948]
[1730581872431,0.01,69457.0,69456.0,0.431924]
[1730581872432,0.17198741,69457.0,69456.0,0.431924]
[1730581872672,0.18544501,69457.0,69456.0,0.431924]
[1730581872970,0.34014201,69457.0,69456.0,0.431924]
[1730581873198,0.33798254,69457.0,69456.0,0.431924]
[1730581873876,0.33798254,69457.0,69456.0,0.143976]
[1730581874325,0.42411708,69457.0,69456.0,0.143976]
[1730581876537,0.42429022,69457.0,69456.0,0.143976]
[1730581876996,0.42429022,69457.0,69456.0,0.144797]
[1730581878159,0.59639022,69457.0,69456.0,0.144797]
[1730581880334,0.59639022,69457.0,69456.0,0.000821]
[1730581882156,0.51025004,69457.0,69456.0,0.000821]
[1730581882811,0.47526028,69457.0,69456.0,0.000821]
[1730581883049,0.51025493,69457.0,69456.0,0.000821]
[1730581883267,0.51025336,69457.0,69456.0,0.000821]
[1730581885924,0.51016856,69457.0,69456.0,0.000821]
[1730581886778,0.51016818,69457.0,69456.0,0.000821]
[1730581891657,0.50816818,69457.0,69456.0,0.144797]
[1730581892061,0.55302882,69457.0,69456.0,0.000821]
[1730581893755,0.55502882,69457.0,69456.0,0.144797]
[1730581894304,0.47517548,69457.0,69456.0,0.144797]
[1730581894690,0.51016477,69457.0,69456.0,0.144797]
[1730581895523,0.5101644,69457.0,69456.0,0.000821]
[1730581896204,0.5081644,69457.0,69456.0,0.144797]
[1730581897288,0.5101644,69457.0,69456.0,0.144797]
[1730581898122,0.50816324,69457.0,69456.0,0.144797]
[1730581898533,0.50816324,69457.0,69456.0,0.000821]
[1730581899396,0.50816324,69457.0,69456.0,0.144797]
[1730581899819,0.50799604,69457.0,69456.0,0.144797]
[1730581900865,0.50999604,69457.0,69456.0,0.144797]
[1730581901517,0.50799604,69457.0,69456.0,0.144797]
[1730581902182,0.50800048,69457.0,69456.0,0.144797]
[1730581904445,0.51000048,69457.0,69456.0,0.144797]
[1730581904652,0.50979727,69457.0,69456.0,0.144797]
[1730581905066,0.50779727,69457.0,69456.0,0.144797]
[1730581906530,0.55266033,69457.0,69456.0,0.144797]
[1730581906993,0.50780068,69457.0,69456.0,0.144797]
[1730581907407,0.55266427,69457.0,69456.0,0.144797]
[1730581909887,0.55266403,69457.0,69456.0,0.144797]
[1730581910109,0.55466403,69457.0,69456.0,0.144797]
[1730581910522,0.55266403,69457.0,69456.0,0.144797]
[1730581911205,0.55466403,69457.0,69456.0,0.144797]
[1730581911640,0.55266403,69457.0,69456.0,0.144797]
[1730581913539,0.51766866,69457.0,69456.0,0.144797]
[1730581913789,0.55266422,69457.0,69456.0,0.144797]
[1730581914014,0.55260827,69457.0,69456.0,0.144797]
[1730581917415,0.53107312,69457.0,69456.0,0.144797]
[1730581917635,0.56607019,69457.0,69456.0,0.144797]
[1730581918063,0.55260978,69457.0,69456.0,0.144797]
[1730581920964,0.51761271,69457.0,69456.0,0.144797]
[1730581921173,0.5526057,69457.0,69456.0,0.144797]
[1730581922042,0.55270739,69457.0,69456.0,0.144797]
[1730581927691,0.55470739,69457.0,69456.0,0.000821]
[1730581927913,0.55470739,69457.0,69456.0,0.144797]
[1730581928122,0.5197144,69457.0,69456.0,0.144797]
[1730581929379,0.5177144,69457.0,69456.0,0.144797]
[1730581930003,0.55270801,69457.0,69456.0,0.144797]
[1730581930212,0.5177144,69457.0,69456.0,0.144797]
[1730581932105,0.5527137,69457.0,69456.0,0.144797]
[1730581934171,0.55271441,69457.0,69456.0,0.144797]
[1730581934617,0.55471441,69457.0,69456.0,0.144797]
[1730581935938,0.55271441,69457.0,69456.0,0.144797]
[1730581936182,0.40041885,69457.0,69456.0,0.144797]
[1730581936384,0.55266421,69457.0,69456.0,0.144797]
[1730581936798,0.55258816,69457.0,69456.0,0.144797]
[1730581938390,0.55458816,69457.0,69456.0,0.144797]
[1730581940603,0.55258816,69457.0,69456.0,0.144797]
[1730581941298,0.53912537,69457.0,69456.0,0.144797]
[1730581941527,0.55258571,69457.0,69456.0,0.144797]
[1730581941958,0.55258571,69457.0,69456.0,0.000821]
[1730581945724,0.55242203,69457.0,69456.0,0.000821]
[1730581946857,0.55242203,69457.0,69456.0,0.144797]
[1730581947309,0.55442203,69457.0,69456.0,0.000821]
[1730581952539,0.51942447,69457.0,69456.0,0.000821]
[1730581953215,0.55441735,69457.0,69456.0,0.000821]
[1730581955178,0.5544327,69457.0,69456.0,0.000821]
[1730581956473,0.55443351,69457.0,69456.0,0.000821]
[1730581957156,0.55243351,69457.0,69456.0,0.000821]
[1730581958865,0.55243351,69457.0,69456.0,0.144797]
[1730581960572,0.55243351,69457.0,69440.0,0.288014]
[1730581960573,0.005,69445.0,69440.0,0.288014]
[1730581960774,0.22151618,69445.0,69444.0,0.145628]
[1730581960977,0.17844894,69445.0,69444.0,0.145628]
[1730581962295,0.22150177,69445.0,69444.0,0.145628]
[1730581963660,0.22147944,69445.0,69444.0,0.145628]
[1730581964369,0.17842661,69445.0,69444.0,0.145628]
[1730581965257,0.17841922,69445.0,69444.0,0.145628]
[1730581970522,0.22144727,69445.0,69444.0,0.145628]
[1730581973707,0.22344727,69445.0,69444.0,0.145628]
[1730581974363,0.1884833,69445.0,69444.0,0.145628]
[1730581974803,0.22343367,69445.0,69444.0,0.145628]
[1730581975654,0.22143367,69445.0,69444.0,0.145628]
[1730581977664,0.17840562,69445.0,69444.0,0.145628]
[1730581978097,0.22143409,69445.0,69444.0,0.145628]
[1730581978559,0.22142176,69445.0,69444.0,0.145628]
[1730581981079,0.22142506,69445.0,69444.0,0.145628]
[1730581984396,0.18647097,69445.0,69444.0,0.145628]
[1730581984614,0.22143806,69445.0,69444.0,0.145628]
[1730581986416,0.22144805,69445.0,69444.0,0.145628]
[1730581986889,0.17842234,69445.0,69444.0,0.145628]
[1730581989512,0.19992984,69445.0,69444.0,0.145628]
[1730581990416,0.2214761,69445.0,69444.0,0.145628]
[1730581990629,0.17845039,69445.0,69444.0,0.145628]
[1730581991309,0.22147952,69445.0,69444.0,0.145628]
[1730581993320,0.19993326,69445.0,69444.0,0.145628]
[1730581993539,0.18648438,69445.0,69444.0,0.145628]
[1730581995796,0.18648743,69445.0,69444.0,0.145628]
[1730581997721,0.22149826,69445.0,69444.0,0.145628]
[1730581998384,0.17846608,69445.0,69444.0,0.145628]
[1730581999116,0.14345525,69445.0,69444.0,0.145628]
[1730581999332,0.17846597,69445.0,69444.0,0.145628]
[1730582001557,0.24301424,69445.0,69444.0,0.145628]
[1730582004214,0.17846597,69445.0,69444.0,0.145628]
[1730582005067,0.17846558,69445.0,69444.0,0.145628]
[1730582005276,0.4159289,69445.0,69444.0,0.145628]
[1730582005482,0.3297964,69445.0,69444.0,0.145628]
[1730582009480,0.17846558,69445.0,69444.0,0.145628]
[1730582009700,0.32993423,69445.0,69444.0,0.145628]
[1730582011881,0.32993497,69445.0,69444.0,0.145628]
[1730582013649,0.32993563,69445.0,69444.0,0.145628]
[1730582014721,0.32987443,69445.0,69444.0,0.145628]
[1730582016993,0.29484596,69445.0,69444.0,0.145628]
[1730582017201,0.32987751,69445.0,69444.0,0.145628]
[1730582020403,0.3298774,69445.0,69444.0,0.145628]
[1730582023081,0.43765415,69445.0,69444.0,0.145628]
[1730582025271,0.43765415,69445.0,69444.0,0.001628]
[1730582025481,0.55199124,69445.0,69444.0,0.001628]
[1730582025698,0.69798924,69445.0,69444.0,0.001628]
[1730582025953,0.82730053,69445.0,69444.0,0.001628]
[1730582026158,0.67643143,69445.0,69444.0,0.001628]
[1730582026578,0.80569979,69445.0,69444.0,0.001628]
[1730582026801,0.67643143,69445.0,69444.0,0.001628]
[1730582027606,0.79219318,69445.0,69444.0,0.001628]
[1730582027832,0.80565299,69445.0,69444.0,0.001628]
[1730582028022,0.67641761,69445.0,69444.0,0.001628]
[1730582028719,0.80562695,69445.0,69444.0,0.001628]
[1730582029471,0.67641761,69445.0,69444.0,0.001628]
[1730582034730,0.67640526,69445.0,69444.0,0.001628]
[1730582037966,0.67467973,69445.0,69444.0,0.001628]
[1730582041261,0.66114747,69445.0,69444.0,0.001628]
[1730582041491,0.67459659,69445.0,69444.0,0.001628]
[1730582045769,0.67455034,69445.0,69444.0,0.001628]
[1730582050317,0.52501621,69445.0,69444.0,0.001628]
[1730582050539,0.67452256,69445.0,69444.0,0.001628]
[1730582051454,0.66107344,69445.0,69444.0,0.001628]
[1730582051670,0.67453222,69445.0,69444.0,0.001628]
[1730582053656,0.66107344,69445.0,69444.0,0.001628]
[1730582055172,0.66107117,69445.0,69444.0,0.001628]
[1730582055422,0.67454633,69445.0,69444.0,0.001628]
[1730582058418,0.66107117,69445.0,69444.0,0.001628]
[1730582061395,0.005,69437.0,69436.0,0.144016]
[1730582061613,0.24305967,69437.0,69436.0,0.144016]
[1730582064261,0.24307009,69437.0,69436.0,0.144016]
[1730582064672,0.17848903,69437.0,69436.0,0.144016]
[1730582065530,0.20804301,69437.0,69436.0,0.144016]
[1730582065743,0.17848921,69437.0,69436.0,0.144016]
[1730582066377,0.14345525,69437.0,69436.0,0.144016]
[1730582066576,0.32840719,69437.0,69436.0,0.144016]
[1730582067569,0.41451527,69437.0,69436.0,0.144016]
[1730582068147,0.41451633,69437.0,69436.0,0.144016]
[1730582068580,0.32840825,69437.0,69436.0,0.144016]
[1730582071440,0.37332299,69437.0,69436.0,0.144016]
[1730582073221,0.37332299,69437.0,69436.0,0.144837]
[1730582073637,0.37343254,69437.0,69436.0,0.144837]
[1730582074963,0.37543254,69437.0,69436.0,0.144837]
[1730582075402,0.37343254,69437.0,69436.0,0.144837]
[1730582077919,0.37343332,69437.0,69436.0,0.144837]
[1730582078166,0.37543332,69437.0,69436.0,0.144837]
[1730582078376,0.37536731,69437.0,69436.0,0.144837]
[1730582078586,0.37536731,69437.0,69436.0,0.000821]
[1730582079269,0.37336731,69437.0,69436.0,0.000821]
[1730582079937,0.33833096,69437.0,69436.0,0.000821]
[1730582080164,0.37336836,69437.0,69436.0,0.000821]
[1730582081007,0.37337,69437.0,69436.0,0.000821]
[1730582083415,0.37337174,69437.0,69436.0,0.000821]
[1730582085368,0.37537174,69437.0,69436.0,0.000821]
[1730582085575,0.37337174,69437.0,69436.0,0.000821]
[1730582087302,0.3383326,69437.0,69436.0,0.000821]
[1730582087532,0.37336823,69437.0,69436.0,0.000821]
[1730582087763,0.37336737,69437.0,69436.0,0.000821]
[1730582088631,0.51738237,69437.0,69436.0,0.000821]
[1730582088846,0.37336737,69437.0,69436.0,0.000821]
[1730582091030,0.37336605,69437.0,69436.0,0.000821]
[1730582091694,0.351807,69437.0,69436.0,0.000821]
[1730582092403,0.20184439,69437.0,69436.0,0.000821]
[1730582092617,0.3517015,69437.0,69436.0,0.000821]
[1730582093691,0.3517015,69437.0,69436.0,0.144838]
[1730582094128,0.3517015,69437.0,69436.0,0.000821]
[1730582094620,0.35170154,69437.0,69436.0,0.144838]
[1730582095012,0.35170154,69437.0,69436.0,0.000821]
[1730582095908,0.35170154,69437.0,69436.0,0.144838]
[1730582096977,0.20184443,69437.0,69436.0,0.000821]
[1730582097219,0.35165626,69437.0,69436.0,0.000821]
[1730582098078,0.33818182,69437.0,69436.0,0.000821]
[1730582098289,0.35165626,69437.0,69436.0,0.000821]
[1730582098537,0.33818182,69437.0,69436.0,0.000821]
[1730582098759,0.35165634,69437.0,69436.0,0.000821]
[1730582100748,0.35165533,69437.0,69436.0,0.000821]
[1730582101670,0.35365533,69437.0,69436.0,0.000821]
[1730582101879,0.35165533,69437.0,69436.0,0.000821]
[1730582102945,0.59447033,69437.0,69436.0,0.000821]
[1730582103177,0.59647033,69437.0,69436.0,0.000821]
[1730582103384,0.67617033,69437.0,69436.0,0.000821]
[1730582103610,0.53015533,69437.0,69436.0,0.000821]
[1730582103857,0.55171228,69437.0,69436.0,0.000821]
[1730582107784,0.51668098,69437.0,69436.0,0.000821]
[1730582108015,0.55170683,69437.0,69436.0,0.000821]
[1730582109732,0.55170683,69437.0,69436.0,0.144838]
[1730582110363,0.55170604,69437.0,69436.0,0.144838]
[1730582111181,0.40189505,69437.0,69436.0,0.144838]
[1730582111383,0.40189499,69437.0,69436.0,0.144838]
[1730582113605,0.5518937,69437.0,69436.0,0.144838]
[1730582114476,0.40189499,69437.0,69436.0,0.144838]
[1730582115088,0.36686999,69437.0,69436.0,0.144838]
[1730582115312,0.40189576,69437.0,69436.0,0.144838]
[1730582116124,0.35698102,69437.0,69436.0,0.144838]
[1730582118965,0.40188532,69437.0,69436.0,0.144838]
[1730582119124,0.55178408,69437.0,69436.0,0.144838]
[1730582120181,0.50687978,69437.0,69436.0,0.144838]
[1730582120433,0.35698102,69437.0,69436.0,0.144838]
[1730582122990,0.3354267,69437.0,69436.0,0.144838]
[1730582124172,0.48540955,69437.0,69436.0,0.144838]
[1730582126293,0.4719381,69437.0,69436.0,0.144838]
[1730582126500,0.48540814,69437.0,69436.0,0.144838]
[1730582128957,0.5931743,69437.0,69436.0,0.144838]
[1730582129426,0.27121905,69437.0,69436.0,0.144838]
[1730582129629,0.01347004,69437.0,69436.0,0.26482774]
[1730582129840,0.01347004,69437.0,69436.0,0.35013138]
[1730582130275,0.06466412,69442.0,69439.0,0.288021]
[1730582130493,0.04309413,69440.0,69439.0,0.144011]
[1730582130698,0.05655998,69440.0,69439.0,0.25380438]
[1730582131336,0.01346585,69440.0,69439.0,0.25380438]
[1730582133521,0.18154938,69442.0,69441.0,0.144007]
[1730582133885,0.19500776,69442.0,69441.0,0.144007]
[1730582134106,0.01345838,69442.0,69441.0,0.239507]
[1730582134344,0.01345838,69442.0,69441.0,0.24238685]
[1730582141219,0.001642,69444.0,69441.0,0.09837985]
[1730582141449,0.001642,69444.0,69443.0,0.25379538]
[1730582141654,0.01508859,69444.0,69443.0,0.25667503]
[1730582142711,0.01508859,69444.0,69443.0,0.144002]
[1730582144490,0.01508859,69444.0,69443.0,0.25379538]
[1730582148130,0.001642,69444.0,69443.0,0.25379538]
[1730582148345,0.01508634,69444.0,69443.0,0.25379538]
[1730582151823,0.001642,69444.0,69443.0,0.25379538]
[1730582152256,0.01509031,69444.0,69443.0,0.25379538]
[1730582155078,0.01509031,69444.0,69443.0,0.25461638]
[1730582155514,0.01509618,69444.0,69443.0,0.25461638]
[1730582157653,0.01509618,69444.0,69443.0,0.2574961]
[1730582159185,0.01510455,69444.0,69443.0,0.2574961]
[1730582161372,0.001642,69444.0,69443.0,0.2574961]
[1730582161598,0.01511223,69444.0,69443.0,0.2574961]
[1730582161823,0.001642,69444.0,69443.0,0.2574961]
[1730582162053,0.01511225,69444.0,69443.0,0.2574961]
[1730582165266,0.001642,69444.0,69443.0,0.2574961]
[1730582165495,0.01511428,69444.0,69443.0,0.2574961]
[1730582168982,0.001642,69444.0,69443.0,0.2574961]
[1730582169203,0.01511281,69444.0,69443.0,0.2574961]
[1730582172901,0.001642,69444.0,69443.0,0.2574961]
[1730582173132,0.01511438,69444.0,69443.0,0.2574961]
[1730582175012,0.001642,69444.0,69443.0,0.2574961]
[1730582175247,0.01511428,69444.0,69443.0,0.2574961]
[1730582177950,0.001642,69444.0,69443.0,0.2574961]
[1730582178167,0.01511475,69444.0,69443.0,0.2574961]
[1730582180148,0.001642,69444.0,69443.0,0.2574961]
[1730582180381,0.01511516,69444.0,69443.0,0.2574961]
[1730582183138,0.001642,69444.0,69443.0,0.2574961]
[1730582183389,0.01511776,69444.0,69443.0,0.2574961]
[1730582184283,0.001642,69444.0,69443.0,0.2574961]
[1730582184508,0.0151186,69444.0,69443.0,0.2574961]
[1730582191240,0.0151229,69444.0,69443.0,0.2574961]
[1730582193762,0.001642,69444.0,69443.0,0.2574961]
[1730582193963,0.01512444,69444.0,69443.0,0.2574961]
[1730582194817,0.01512404,69444.0,69443.0,0.2574961]
[1730582195021,0.001642,69444.0,69443.0,0.2574961]
[1730582195251,0.01512355,69444.0,69443.0,0.2574961]
[1730582198469,0.01512285,69444.0,69443.0,0.2574961]
[1730582202178,0.01512285,69444.0,69443.0,0.25461638]
[1730582206607,0.11372285,69444.0,69443.0,0.25461638]
[1730582206821,0.19372285,69444.0,69443.0,0.144823]
[1730582207465,0.19372229,69444.0,69443.0,0.144823]
[1730582212844,0.180242,69444.0,69443.0,0.144823]
[1730582213065,0.19372183,69444.0,69443.0,0.144823]
[1730582216809,0.19372132,69444.0,69443.0,0.144823]
[1730582220280,0.180242,69444.0,69443.0,0.144823]
[1730582220476,0.19372116,69444.0,69443.0,0.144823]
[1730582220813,0.180242,69444.0,69443.0,0.144823]
[1730582221033,0.19372113,69444.0,69443.0,0.144823]
[1730582222712,0.180242,69444.0,69443.0,0.144823]
[1730582222920,0.19372122,69444.0,69443.0,0.144823]
[1730582226682,0.180242,69444.0,69443.0,0.144823]
[1730582226890,0.19372097,69444.0,69443.0,0.144823]
[1730582230205,0.19372121,69444.0,69443.0,0.144823]
[1730582234041,0.19372119,69444.0,69443.0,0.144823]
[1730582235721,0.33717644,69444.0,69443.0,0.144823]
[1730582236351,0.33717644,69444.0,69443.0,0.000821]
[1730582238135,0.33717242,69444.0,69443.0,0.000821]
[1730582238780,0.32369725,69444.0,69443.0,0.000821]
[1730582240174,0.33717408,69444.0,69443.0,0.000821]
[1730582240615,0.35065419,69444.0,69443.0,0.000821]
[1730582241038,0.41534556,69444.0,69443.0,0.000821]
[1730582242089,0.35065419,69444.0,69443.0,0.000821]
[1730582242726,0.39378489,69444.0,69443.0,0.000821]
[1730582243801,0.39376529,69444.0,69443.0,0.000821]
[1730582244239,0.35065419,69444.0,69443.0,0.000821]
[1730582244597,0.35065419,69444.0,69443.0,0.144823]
[1730582249045,0.35064152,69444.0,69443.0,0.144823]
[1730582250548,0.33716304,69444.0,69443.0,0.144823]
[1730582250978,0.33716266,69444.0,69443.0,0.144823]
[1730582254396,0.337159,69444.0,69443.0,0.144823]
[1730582261571,0.33716131,69444.0,69443.0,0.144823]
[1730582265211,0.32369725,69444.0,69443.0,0.144823]
[1730582265433,0.33716777,69444.0,69443.0,0.144823]
[1730582268695,0.32369725,69444.0,69443.0,0.144823]
[1730582268901,0.33717498,69444.0,69443.0,0.144823]
[1730582272732,0.32369725,69444.0,69443.0,0.144823]
[1730582272954,0.33717579,69444.0,69443.0,0.144823]
[1730582274301,0.33717577,69444.0,69443.0,0.144823]
[1730582276284,0.33717579,69444.0,69443.0,0.144823]
[1730582277764,0.38026856,69444.0,69443.0,0.144823]
[1730582278188,0.33717579,69444.0,69443.0,0.144823]
[1730582279265,0.40178348,69444.0,69443.0,0.144823]
[1730582280149,0.40178269,69444.0,69443.0,0.144823]
[1730582281211,0.40184386,69444.0,69443.0,0.144823]
[1730582281675,0.337175,69444.0,69443.0,0.144823]
[1730582282087,0.48812506,69444.0,69443.0,0.144823]
[1730582282335,0.337175,69444.0,69443.0,0.144823]
[1730582282570,0.32369725,69444.0,69443.0,0.144823]
[1730582282815,0.40184371,69444.0,69443.0,0.144823]
[1730582283020,0.38836714,69444.0,69443.0,0.144823]
[1730582283223,0.33717388,69444.0,69443.0,0.144823]
[1730582283622,0.4234085,69444.0,69443.0,0.144823]
[1730582283995,0.35873569,69444.0,69443.0,0.144823]
[1730582284197,0.59609175,69444.0,69443.0,0.144823]
[1730582284958,0.50986186,69444.0,69443.0,0.144823]
[1730582285329,0.5960912,69444.0,69443.0,0.144823]
[1730582285526,0.50986186,69444.0,69443.0,0.144823]
[1730582286126,0.5960912,69444.0,69443.0,0.144823]
[1730582286334,0.56105331,69444.0,69443.0,0.144823]
[1730582286757,0.50986046,69444.0,69443.0,0.144823]
[1730582287393,0.5960898,69444.0,69443.0,0.144823]
[1730582288277,0.50986046,69444.0,69443.0,0.144823]
[1730582288696,0.59616165,69444.0,69443.0,0.144823]
[1730582289121,0.59616165,69444.0,69443.0,0.000821]
[1730582289387,0.59616165,69444.0,69443.0,0.144823]